bitfinex/quotes_ETHUSD_20260106
["timestamp","ask_amount","ask_price","bid_price","bid_amount"]
[1767672956366,3.45704789,3228.5,3227.5,0.92136395]
[1767672958875,3.45704789,3228.5,3227.7,0.93657839]
[1767672959073,0.34570479,3228.4,3227.7,0.93657839]
[1767672959275,3.09712586,3228.8,3227.7,0.93657839]
[1767672959485,3.09712586,3228.8,3227.9,0.93657839]
[1767672960604,6.19425172,3228.8,3227.9,0.93657839]
[1767672960808,0.61942517,3228.7,3227.9,0.93657839]
[1767672961177,3.09705714,3228.9,3227.9,0.93657839]
[1767672961178,3.09703707,3228.9,3227.9,0.93657839]
[1767672961493,6.28731568,3228.9,3227.9,0.93657839]
[1767672961694,0.002,3228.7,3228.0,0.95852025]
[1767672961911,0.002,3228.7,3228.2,0.95852025]
[1767672962207,0.002,3228.7,3228.3,0.95852025]
[1767672962578,0.002,3228.7,3228.5,0.95852025]
[1767672970824,0.002,3228.7,3228.5,0.95718268]
[1767672975406,0.002,3229.0,3228.6,0.95852025]
[1767672977296,0.40890714,3229.0,3227.9,0.95852025]
[1767672977496,0.40890714,3229.0,3228.2,3.90868229]
[1767672977721,0.40890714,3229.0,3228.2,1.76952025]
[1767672977910,0.40890714,3229.0,3228.2,4.86720083]
[1767672978232,0.002,3229.0,3228.5,0.95852025]
[1767672978431,0.002,3229.0,3228.7,0.95852025]
[1767672978632,0.002,3229.0,3228.9,0.95852025]
[1767672978919,7.75e-05,3229.3,3229.0,0.95852025]
[1767672983139,0.49375862,3229.3,3228.6,0.55611071]
[1767672983299,3.59062976,3229.0,3228.2,1.76952025]
[1767672983499,0.49368112,3228.9,3228.2,0.95852025]
[1767672983802,0.49368112,3228.7,3227.9,0.95852025]
[1767672984431,0.49368112,3228.5,3227.8,0.001]
[1767672985292,0.49368112,3228.5,3228.2,0.001]
[1767672986125,3.59113104,3228.5,3228.2,0.001]
[1767672986296,0.49368112,3228.4,3228.2,0.001]
[1767672987340,3.76628766,3228.5,3228.2,0.001]
[1767672987516,3.09724639,3228.7,3228.2,0.001]
[1767672987517,3.09734349,3228.6,3228.2,0.001]
[1767672988217,3.59082137,3228.8,3228.2,0.001]
[1767672988218,3.09726392,3228.7,3228.2,0.001]
[1767672988423,0.74989907,3228.7,3228.2,0.001]
[1767672989706,0.811,3228.9,3228.2,0.95952025]
[1767672989913,3.59264794,3229.0,3228.2,0.95952025]
[1767672991224,0.49568112,3229.0,3228.2,0.95952025]
[1767672991526,0.49568112,3229.0,3228.5,0.93632529]
[1767672991527,0.002,3229.0,3228.5,0.93632529]
[1767672991718,0.002,3229.0,3228.7,0.93632529]
[1767672992728,7.75e-05,3229.3,3228.9,0.93632529]
[1767672997515,7.75e-05,3229.3,3228.7,1.74732529]
[1767672997817,7.75e-05,3229.3,3228.7,0.93632529]
[1767672998436,0.002,3229.0,3228.7,0.93632529]
[1767672998740,0.002,3229.0,3228.5,0.93632529]
[1767672998947,0.49568112,3229.0,3228.3,0.93632529]
[1767672999242,0.002,3229.0,3228.3,0.93632529]
[1767673001127,0.49568112,3229.0,3228.3,0.93632529]
[1767673001438,1.16463373,3229.0,3228.3,0.93632529]
[1767673001846,0.49568112,3229.0,3228.3,0.93632529]
[1767673002044,0.002,3229.0,3228.5,0.93632529]
[1767673003742,0.002,3229.0,3228.7,0.93632529]
[1767673003911,7.75e-05,3229.3,3228.8,0.96729654]
[1767673004118,7.75e-05,3229.3,3228.8,0.93632529]
[1767673009866,0.002,3229.0,3228.8,0.93632529]
[1767673010343,0.002,3229.0,3228.3,0.93632529]
[1767673010516,0.49568112,3229.0,3228.3,0.93632529]
[1767673012549,3.59262056,3229.0,3228.3,0.93632529]
[1767673015639,0.49568112,3229.0,3228.3,0.93632529]
[1767673016033,0.002,3229.0,3228.3,0.93632529]
[1767673021467,0.002,3229.0,3228.6,0.001]
[1767673021670,0.6802496,3229.0,3228.6,0.001]
[1767673025971,3.77719549,3229.0,3228.6,0.001]
[1767673026168,0.49368112,3228.9,3228.2,0.93188329]
[1767673026371,0.58692266,3228.9,3228.2,0.001]
[1767673026569,3.59080698,3228.8,3228.2,0.001]
[1767673026746,0.67810867,3228.7,3228.2,0.001]
[1767673026948,0.49368112,3228.6,3228.2,0.001]
[1767673028873,3.59100657,3228.6,3228.2,0.001]
[1767673029358,0.49368112,3228.6,3228.2,0.001]
[1767673030787,3.09723052,3228.7,3228.2,0.001]
[1767673030946,0.35909116,3228.6,3228.2,0.001]
[1767673031445,0.85277228,3228.6,3228.2,0.001]
[1767673032877,0.35909116,3228.6,3228.2,0.001]
[1767673033078,3.45641624,3228.6,3228.2,0.001]
[1767673033576,0.35909116,3228.6,3228.2,0.001]
[1767673033972,3.45640916,3228.6,3228.2,0.001]
[1767673034175,0.34564092,3228.5,3228.2,0.001]
[1767673035062,3.44305499,3228.5,3228.2,0.001]
[1767673035248,0.34564092,3228.5,3228.2,0.001]
[1767673036074,0.83932204,3228.5,3228.2,0.001]
[1767673036286,3.93674253,3228.5,3228.2,0.001]
[1767673036583,0.42918337,3228.4,3228.2,0.001]
[1767673036982,0.42918337,3228.4,3227.8,0.93188329]
[1767673036983,3.52676624,3228.4,3227.8,0.93188329]
[1767673037156,0.58692266,3228.3,3226.8,0.001]
[1767673037356,0.58692266,3228.1,3227.1,0.93088329]
[1767673037658,0.49368112,3227.8,3227.1,0.93088329]
[1767673038358,0.58692266,3227.7,3227.1,0.93088329]
[1767673038561,0.58692266,3227.7,3226.9,0.93088329]
[1767673038962,0.49368112,3227.7,3226.9,0.93088329]
[1767673039274,3.09827735,3227.6,3226.9,0.93088329]
[1767673040276,3.76728192,3227.6,3226.9,0.93088329]
[1767673040584,0.66900457,3227.6,3226.9,0.93088329]
[1767673040985,0.66900457,3227.6,3226.8,0.001]
[1767673040986,3.59171054,3227.9,3227.1,0.93088329]
[1767673041187,3.68495208,3227.9,3227.1,0.93088329]
[1767673041881,6.7829815,3227.9,3227.1,0.93088329]
[1767673042075,0.49368112,3227.8,3227.1,0.93088329]
[1767673042279,0.67829815,3227.7,3227.1,0.93088329]
[1767673042878,0.77153969,3227.7,3226.8,0.93188329]
[1767673043384,3.59195847,3227.6,3226.8,0.93188329]
[1767673045059,0.67829815,3227.7,3226.8,0.93188329]
[1767673045288,3.68495282,3227.9,3226.8,0.93188329]
[1767673045485,3.59171128,3227.9,3226.8,0.93188329]
[1767673045988,6.78298298,3227.9,3227.2,0.93088329]
[1767673046354,3.59171128,3227.9,3227.2,0.93088329]
[1767673046559,0.09324154,3227.7,3227.2,0.93088329]
[1767673046884,1.27454511,3227.7,3227.1,0.001]
[1767673047901,3.59195847,3227.6,3227.1,0.001]
[1767673048071,6.69023582,3227.6,3227.1,0.001]
[1767673049094,3.59195847,3227.6,3227.1,0.001]
[1767673050098,0.68762245,3227.7,3227.1,0.93188329]
[1767673050277,3.09815302,3227.8,3227.1,0.93188329]
[1767673051565,3.19139456,3227.8,3227.1,0.93188329]
[1767673052311,3.09815302,3227.8,3227.1,0.93188329]
[1767673052601,3.0979894,3227.9,3227.1,0.93188329]
[1767673053396,0.49368112,3227.6,3226.9,0.91510128]
[1767673053691,0.09324154,3227.5,3226.9,0.91510128]
[1767673053897,1.03377915,3227.3,3225.8,3.83]
[1767673054107,1.03377915,3227.3,3226.3,0.91510128]
[1767673054280,4.13240426,3227.3,3226.3,0.91510128]
[1767673054485,4.86481169,3227.3,3226.3,0.91510128]
[1767673054680,0.94053761,3227.2,3226.3,0.91510128]
[1767673056370,0.94053761,3227.2,3226.4,0.91510128]
[1767673056578,4.03893632,3227.5,3226.5,0.94609461]
[1767673056795,7.13737553,3227.5,3226.5,0.91510128]
[1767673057007,0.94053761,3227.3,3226.2,1.72710128]
[1767673057204,0.94053761,3227.3,3226.3,0.91510128]
[1767673058511,0.94053761,3227.1,3226.6,0.001]
[1767673062215,4.03930992,3227.1,3226.6,0.001]
[1767673062447,0.94053761,3227.0,3226.6,0.001]
[1767673062986,4.03941534,3227.0,3226.6,0.001]
[1767673063805,0.94053761,3226.9,3226.6,0.001]
[1767673068014,4.03931893,3227.1,3226.6,0.001]
[1767673070493,4.75310919,3227.1,3226.6,0.001]
[1767673070693,0.002,3226.9,3226.6,0.001]
[1767673071524,0.94253761,3226.9,3226.2,0.91510128]
[1767673072629,4.04152862,3226.9,3226.2,0.91510128]
[1767673073122,7.14051963,3226.9,3226.2,0.91510128]
[1767673073337,0.94053761,3226.8,3226.2,0.91510128]
[1767673073693,3.10099101,3226.9,3226.2,0.91510128]
[1767673073897,0.002,3226.9,3226.4,0.91510128]
[1767673081034,0.90436069,3226.9,3226.0,0.98485725]
[1767673081809,4.00335516,3226.9,3226.0,0.98485725]
[1767673082054,4.00335516,3226.9,3226.1,0.98823371]
[1767673082259,0.90436069,3226.9,3226.1,0.98823371]
[1767673082738,0.90436069,3226.9,3226.3,0.001]
[1767673083056,0.002,3226.8,3226.3,0.001]
[1767673084627,0.96826081,3226.8,3226.3,0.001]
[1767673084826,0.96626081,3226.7,3226.3,0.001]
[1767673085553,1.05950235,3226.6,3225.9,0.812]
[1767673085740,4.15880438,3226.6,3225.9,0.812]
[1767673086264,0.96626081,3226.5,3225.7,0.001]
[1767673087653,0.96626081,3226.3,3225.7,0.001]
[1767673087817,0.96626081,3226.1,3225.7,0.001]
[1767673088214,0.96626081,3226.1,3225.4,0.3099854]
[1767673088445,6.29248522,3226.2,3225.4,0.3099854]
[1767673088446,0.96626081,3225.9,3225.4,0.3099854]
[1767673091560,3.09923758,3226.6,3225.7,0.98823371]
[1767673091758,3.82725031,3226.8,3226.1,0.98823371]
[1767673092056,0.38292503,3226.7,3226.1,0.98823371]
[1767673093028,1.34918584,3226.7,3225.8,5.59414974]
[1767673093229,1.34918584,3226.7,3225.9,0.98823371]
[1767673094261,4.44833175,3226.7,3225.9,0.98823371]
[1767673094837,1.05950235,3226.6,3225.9,0.98823371]
[1767673095173,1.05950235,3226.4,3225.5,0.98823371]
[1767673095534,1.06150235,3226.4,3225.5,0.98823371]
[1767673095934,0.96626081,3226.1,3225.4,0.3099854]
[1767673096361,0.90524154,3226.2,3225.4,0.3099854]
[1767673096362,0.96626081,3225.9,3225.4,0.3099854]
[1767673096741,0.96626081,3225.8,3225.4,0.3099854]
[1767673100236,4.06628718,3225.8,3225.4,0.3099854]
[1767673101071,0.96626081,3225.8,3225.4,0.3099854]
[1767673101567,4.06628354,3225.8,3225.4,0.3099854]
[1767673102159,0.96626081,3225.7,3225.4,0.3099854]
[1767673104058,4.06617091,3225.9,3225.4,0.3099854]
[1767673104373,0.7259235,3225.8,3225.4,0.3099854]
[1767673106569,3.82596715,3225.8,3225.4,0.3099854]
[1767673107070,3.82594496,3225.8,3225.4,0.3099854]
[1767673107270,3.82594496,3225.8,3225.4,0.00296122]
[1767673107442,3.82594496,3225.8,3225.1,0.98923371]
[1767673107643,0.47922058,3225.7,3225.1,0.98923371]
[1767673107852,0.96626081,3225.6,3225.1,0.001]
[1767673109842,0.47922058,3225.7,3225.1,0.98923371]
[1767673111247,3.10004819,3225.8,3225.1,0.98923371]
[1767673112260,4.06621708,3225.9,3225.1,0.98923371]
[1767673113482,3.19473905,3226.4,3225.1,0.98923371]
[1767673113483,0.002,3226.4,3225.6,0.91493878]
[1767673113860,3.09956341,3226.3,3225.6,0.91493878]
[1767673114181,0.71340094,3226.2,3225.6,0.91493878]
[1767673116180,3.81304855,3226.2,3225.6,0.91493878]
[1767673117684,0.71340094,3226.2,3225.6,0.91493878]
[1767673117853,0.93500562,3226.4,3225.6,0.91493878]
[1767673118989,3.09952577,3226.3,3225.6,0.91493878]
[1767673119588,0.002,3225.9,3225.6,0.91493878]
[1767673121587,0.002,3225.9,3225.3,0.91493878]
[1767673121776,0.93500562,3225.9,3225.1,0.91593878]
[1767673122188,0.93500562,3225.9,3225.1,0.001]
[1767673122993,0.93300562,3225.7,3225.1,0.001]
[1767673126210,3.10012352,3225.7,3225.2,0.91493878]
[1767673126378,3.82295323,3225.7,3225.2,0.91493878]
[1767673126570,3.82295323,3225.7,3225.1,0.001]
[1767673126571,0.93300562,3225.6,3225.1,0.001]
[1767673128504,4.03320635,3225.6,3225.1,0.001]
[1767673130588,0.93300562,3225.6,3225.1,0.001]
[1767673131190,4.03323757,3225.6,3225.1,0.001]
[1767673131491,4.82816973,3225.6,3225.1,0.001]
[1767673132310,0.79493216,3225.6,3225.1,0.001]
[1767673132609,0.79493216,3225.6,3225.1,0.91593878]
[1767673132789,4.03304413,3225.8,3225.1,0.91593878]
[1767673132991,4.03304413,3225.8,3225.4,0.001]
[1767673135505,3.10003851,3225.8,3225.4,0.001]
[1767673137996,6.20009438,3225.8,3225.2,0.97405345]
[1767673138193,0.09324154,3225.7,3225.1,0.001]
[1767673138401,0.72695333,3225.6,3225.1,0.001]
[1767673139210,0.72695333,3225.6,3225.1,0.97505345]
[1767673139819,3.19337233,3225.7,3225.1,0.97505345]
[1767673140788,0.09324154,3225.7,3225.1,0.97505345]
[1767673141286,3.10001344,3225.8,3225.1,0.97505345]
[1767673142122,6.20002688,3225.8,3225.1,0.97505345]
[1767673142422,7.10236349,3225.8,3225.1,0.97505345]
[1767673142623,0.7197605,3225.7,3225.1,0.97505345]
[1767673143204,3.10019841,3225.6,3225.1,0.97505345]
[1767673144198,3.10019841,3225.6,3225.1,0.001]
[1767673144401,4.72223745,3225.7,3225.1,0.001]
[1767673145099,4.72223745,3225.7,3225.1,0.96962925]
[1767673146023,1.62209711,3225.7,3225.4,0.001]
[1767673146224,0.002,3225.5,3225.4,0.001]
[1767673146728,0.002,3225.5,3225.1,0.96962925]
[1767673149711,0.002,3225.8,3225.4,0.96862925]
[1767673150919,0.002,3225.8,3225.2,0.96862925]
[1767673155230,0.002,3226.2,3225.7,0.96862925]
[1767673159425,0.002,3225.9,3225.7,0.96862925]
[1767673159743,0.002,3226.2,3225.7,0.96862925]
[1767673160135,0.002,3226.2,3225.5,3.10023512]
[1767673160325,0.002,3226.2,3225.6,0.40698644]
[1767673160642,0.002,3226.2,3225.6,1.37561569]
[1767673162544,0.002,3226.2,3225.7,0.96862925]
[1767673163144,0.002,3226.4,3226.0,0.96862925]
[1767673163538,3.06062636,3226.5,3226.0,0.96862925]
[1767673163739,0.99557815,3226.4,3225.5,0.96862925]
[1767673164824,0.90233661,3226.3,3225.5,0.96862925]
[1767673165355,0.002,3226.7,3225.7,0.96862925]
[1767673165356,0.90433661,3226.7,3225.7,0.96862925]
[1767673165944,0.002,3226.7,3226.3,0.01842501]
[1767673167637,0.002,3226.7,3226.3,0.98705426]
[1767673171251,0.002,3226.4,3226.3,0.98705426]
[1767673171434,0.99167024,3226.7,3226.3,0.01842501]
[1767673171636,0.98967024,3226.6,3225.8,0.8893131]
[1767673172359,0.98967024,3226.4,3225.5,0.90562798]
[1767673172552,0.98967024,3226.4,3225.6,0.90562798]
[1767673172948,0.98967024,3226.4,3225.7,0.90562798]
[1767673175359,4.4980326,3226.4,3225.7,0.90562798]
[1767673175546,1.39857091,3226.4,3225.7,0.90562798]
[1767673176163,0.98967024,3226.3,3225.5,0.90562798]
[1767673176337,0.98967024,3226.2,3225.5,0.90562798]
[1767673176543,0.98967024,3226.2,3225.4,0.001]
[1767673176767,1.70854945,3226.1,3225.4,0.001]
[1767673177860,1.70854945,3226.1,3225.4,0.90662798]
[1767673180334,0.71887921,3226.1,3225.4,0.90662798]
[1767673180649,4.0892368,3226.3,3225.4,0.90662798]
[1767673181945,7.18883983,3226.3,3225.4,0.90662798]
[1767673182665,0.98967024,3226.2,3225.4,0.90662798]
[1767673182867,1.08291178,3226.2,3225.4,0.90662798]
[1767673183764,4.09138816,3226.1,3225.7,0.001]
[1767673184070,1.40813321,3226.0,3225.4,0.001]
[1767673184359,1.50137475,3226.0,3225.4,0.001]
[1767673184568,0.98967024,3225.9,3225.4,0.001]
[1767673184872,0.98967024,3225.9,3225.1,0.001]
[1767673185378,0.98967024,3225.9,3225.1,0.90662798]
[1767673185966,0.98967024,3225.7,3225.1,0.001]
[1767673186533,0.98967024,3225.7,3225.1,0.90662798]
[1767673187462,4.08961037,3225.9,3225.1,0.90662798]
[1767673187662,0.46013149,3225.8,3225.1,0.90662798]
[1767673188364,3.5601436,3225.8,3225.1,0.90662798]
[1767673190462,4.54981384,3225.8,3225.1,0.90662798]
[1767673190663,0.98967024,3225.7,3225.1,0.001]
[1767673191368,0.98967024,3225.7,3225.1,0.90662798]
[1767673191564,1.75465284,3225.7,3225.1,0.001]
[1767673192455,0.98967024,3225.7,3225.1,0.90662798]
[1767673192863,3.5601406,3225.8,3225.1,0.90662798]
[1767673194274,3.54434722,3225.8,3225.1,0.90662798]
[1767673194762,0.44433811,3225.8,3225.1,0.90662798]
[1767673195159,3.54435279,3225.8,3225.1,0.90662798]
[1767673196365,3.10001468,3225.8,3225.4,0.001]
[1767673196677,0.002,3225.5,3225.4,0.001]
[1767673198174,0.002,3225.8,3225.4,0.001]
[1767673199163,0.002,3225.8,3225.1,0.90662798]
[1767673199372,0.91941001,3225.8,3225.1,0.90662798]
[1767673200882,1.01265155,3225.8,3225.1,0.001]
[1767673201678,3.1001023,3225.7,3225.1,0.9073524]
[1767673205789,3.10205063,3225.8,3225.1,0.9073524]
[1767673205988,0.002,3225.8,3225.1,0.9073524]
[1767673206207,0.002,3225.8,3225.1,1.07928764]
[1767673209074,0.002,3225.8,3225.4,0.001]
[1767673209301,0.002,3225.5,3225.4,0.001]
[1767673209502,0.002,3225.8,3225.4,0.001]
[1767673215113,0.91987658,3225.8,3225.4,0.001]
[1767673216214,0.002,3225.8,3225.4,0.001]
[1767673220430,1.64116279,3225.8,3225.4,0.001]
[1767673221216,0.002,3225.5,3225.4,0.001]
[1767673225120,4.01579008,3225.8,3225.4,0.001]
[1767673227225,0.91576083,3225.8,3225.4,0.001]
[1767673228023,4.01577303,3225.8,3225.4,0.001]
[1767673228226,4.73665641,3225.8,3225.4,0.001]
[1767673229620,1.63664421,3225.8,3225.4,0.001]
[1767673230215,4.73665122,3225.8,3225.4,0.001]
[1767673230621,1.63664421,3225.8,3225.4,0.001]
[1767673231314,0.72088338,3225.8,3225.4,0.001]
[1767673233028,0.002,3225.5,3225.4,0.001]
[1767673239155,0.002,3225.5,3225.4,0.97369462]
[1767673241037,0.002,3225.8,3225.5,0.97269462]
[1767673244727,0.002,3225.8,3225.7,0.001]
[1767673244929,0.002,3225.8,3225.5,0.97269462]
[1767673249463,0.002,3226.1,3225.6,0.97269462]
[1767673249668,0.9849374,3226.4,3225.8,0.97269462]
[1767673250566,4.08439057,3226.4,3225.8,0.97269462]
[1767673251460,7.18384374,3226.4,3225.8,0.97269462]
[1767673251769,0.09324154,3226.3,3225.5,0.97269462]
[1767673252266,1.07617894,3226.3,3225.5,0.97269462]
[1767673254338,0.9829374,3226.3,3225.5,0.97269462]
[1767673254538,3.10145317,3226.4,3225.5,0.97269462]
[1767673255168,0.09324154,3226.3,3225.5,0.97269462]
[1767673256549,3.19284203,3226.3,3225.8,0.001]
[1767673256752,0.002,3226.1,3225.8,0.001]
[1767673267686,0.002,3226.1,3225.5,0.90514282]
[1767673280210,0.002,3226.1,3225.8,0.001]
[1767673282308,0.002,3226.1,3225.8,0.90614282]
[1767673286732,0.002,3226.1,3225.8,0.001]
[1767673288199,0.32148249,3226.1,3225.8,0.001]
[1767673296214,3.4212517,3226.1,3225.8,0.001]
[1767673296431,0.90997875,3226.0,3225.4,0.001]
[1767673296591,0.90997875,3226.0,3225.4,0.95885273]
[1767673296789,3.51449324,3226.1,3225.4,0.95885273]
[1767673296989,0.4424472,3226.0,3225.4,0.95885273]
[1767673297792,0.90997875,3225.7,3224.7,0.95785273]
[1767673298187,0.90997875,3225.9,3224.7,0.95785273]
[1767673298493,6.2000124,3225.8,3224.8,0.95785273]
[1767673298693,0.71099912,3225.7,3224.8,0.95785273]
[1767673300023,1.62097787,3225.7,3224.8,0.95785273]
[1767673300395,4.01017716,3225.6,3224.8,0.95785273]
[1767673303124,4.00781875,3225.6,3224.9,0.95785273]
[1767673303898,4.00781875,3225.6,3225.1,0.001]
[1767673304122,0.47188179,3225.5,3225.1,0.001]
[1767673305699,0.47188179,3225.5,3225.1,0.95885273]
[1767673307325,0.002,3225.8,3225.2,0.98885855]
[1767673307518,0.002,3226.1,3225.5,0.95785273]
[1767673310644,3.10171792,3226.1,3225.5,0.95785273]
[1767673313799,6.20143584,3226.1,3225.5,0.95785273]
[1767673314265,3.10171792,3226.1,3225.5,0.95785273]
[1767673314564,1.62112021,3226.0,3225.3,0.95785273]
[1767673314720,0.90997875,3226.0,3225.3,0.95785273]
[1767673315064,0.91365562,3225.9,3225.1,0.96455734]
[1767673316926,3.1000062,3225.8,3225.1,0.96455734]
[1767673318021,4.01360394,3225.9,3225.1,0.96455734]
[1767673318421,4.80633852,3225.9,3225.1,0.96455734]
[1767673321452,0.79273458,3225.9,3225.3,0.9843053]
[1767673321653,1.76240459,3226.1,3225.3,0.9843053]
[1767673321840,4.86215089,3226.1,3225.3,0.9843053]
[1767673325569,0.002,3226.1,3225.6,0.9843053]
[1767673327866,0.002,3226.1,3225.6,0.9853053]
[1767673334964,0.00107777,3226.1,3225.6,0.9853053]
[1767673336374,0.00107777,3226.1,3225.6,1.54472033]
[1767673339150,0.00107777,3226.1,3225.7,0.9843053]
[1767673339354,0.002,3225.8,3225.7,0.9843053]
[1767673339574,0.00107777,3226.1,3225.8,0.9843053]
[1767673342747,0.002,3226.4,3226.0,0.9843053]
[1767673344573,0.002,3226.4,3225.7,0.9843053]
[1767673345451,0.95040459,3226.4,3225.7,0.9843053]
[1767673345654,0.95040459,3226.4,3225.7,0.61535653]
[1767673345867,0.95040459,3226.4,3225.6,0.001]
[1767673346065,0.94840459,3226.2,3225.6,0.001]
[1767673346776,4.04803136,3226.2,3225.6,0.001]
[1767673346975,0.94840459,3226.1,3225.6,0.001]
[1767673349871,4.04796054,3226.3,3225.6,0.001]
[1767673350184,4.04796054,3226.3,3225.6,0.9853053]
[1767673350484,3.10145729,3226.4,3225.6,0.9853053]
[1767673351048,3.10145729,3226.4,3225.9,0.001]
[1767673351250,3.81622748,3226.4,3225.9,0.001]
[1767673355092,6.91568477,3226.4,3225.9,0.001]
[1767673355313,7.8625935,3226.4,3225.9,0.001]
[1767673355996,4.76313621,3226.4,3225.9,0.001]
[1767673363307,0.002,3226.1,3225.9,0.001]
[1767673366006,0.002,3226.1,3225.7,0.93165363]
[1767673366007,0.002,3226.1,3225.7,0.89747569]
[1767673374793,0.002,3226.4,3226.0,0.96402773]
[1767673377120,0.002,3226.4,3225.7,0.96402773]
[1767673379005,0.002,3226.4,3225.9,0.96402773]
[1767673381506,0.002,3226.4,3225.7,0.94717948]
[1767673381694,0.96359415,3226.4,3225.7,0.94717948]
[1767673381897,0.96359415,3226.4,3225.6,0.001]
[1767673382857,0.96359415,3226.4,3225.6,0.94817948]
[1767673384029,4.06305905,3226.4,3225.6,1.35302133]
[1767673384929,0.96159415,3226.3,3225.6,0.94817948]
[1767673385130,0.96159415,3226.3,3225.1,0.001]
[1767673385131,0.96159415,3226.2,3225.1,0.001]
[1767673385297,0.96159415,3226.0,3225.1,0.001]
[1767673386196,0.96159415,3225.8,3225.1,0.001]
[1767673386398,0.96159415,3225.7,3225.1,0.001]
[1767673386719,0.96159415,3225.7,3225.4,0.001]
[1767673389144,4.0617515,3225.7,3225.4,0.001]
[1767673389345,0.96159415,3225.6,3225.4,0.001]
[1767673391630,4.06188007,3225.6,3225.1,0.001]
[1767673391832,4.84987049,3225.6,3225.1,0.001]
[1767673392035,1.74958457,3225.6,3225.1,0.001]
[1767673395836,0.78799042,3225.6,3225.1,0.94817948]
[1767673396048,0.002,3225.8,3225.1,0.94817948]
[1767673396559,3.10200896,3225.8,3225.1,0.94817948]
[1767673396944,0.002,3225.8,3225.3,0.94717948]
[1767673397145,0.002,3225.8,3225.5,0.94717948]
[1767673397553,0.002,3225.8,3225.5,0.93199985]
[1767673398059,0.002,3226.1,3225.8,0.94717948]
[1767673399257,0.002,3226.1,3225.5,0.94717948]
[1767673399458,0.002,3226.0,3225.5,0.94717948]
[1767673399659,0.002,3226.0,3225.4,0.001]
[1767673399836,4.06340816,3226.0,3225.4,0.001]
[1767673400163,7.16322217,3226.0,3225.4,0.001]
[1767673400651,4.06340816,3226.0,3225.4,0.001]
[1767673401429,4.86898961,3226.0,3225.4,0.001]
[1767673406053,4.86898961,3226.0,3225.4,0.94817948]
[1767673406448,0.28966078,3225.9,3225.4,0.94817948]
[1767673406766,0.28966078,3225.8,3225.4,0.94817948]
[1767673407063,0.28966078,3225.7,3225.4,0.94817948]
[1767673407358,0.28966078,3225.6,3225.4,0.94817948]
[1767673407558,4.06340816,3226.0,3225.4,0.94817948]
[1767673407898,0.69623763,3225.9,3225.4,0.94817948]
[1767673408178,0.28969681,3225.8,3225.4,0.94817948]
[1767673408460,0.28969681,3225.7,3225.4,0.94817948]
[1767673408660,0.28969681,3225.6,3225.4,0.94817948]
[1767673408842,3.10182927,3226.0,3225.4,0.94817948]
[1767673409043,0.28972913,3225.9,3225.4,0.94817948]
[1767673409344,0.28972913,3225.8,3225.4,0.94817948]
[1767673409548,0.28972913,3225.7,3225.4,0.94817948]
[1767673409753,0.28972913,3225.6,3225.4,0.94817948]
[1767673409961,3.10182927,3226.0,3225.4,0.94817948]
[1767673410160,0.60015083,3225.9,3225.4,0.94817948]
[1767673410368,0.2897679,3225.8,3225.4,0.94817948]
[1767673410958,0.2897679,3225.7,3225.4,0.94817948]
[1767673411151,0.2897679,3225.6,3225.4,0.94817948]
[1767673411467,0.28981966,3225.5,3225.4,0.94817948]
[1767673414468,0.29000742,3225.5,3225.4,0.94817948]
[1767673418370,0.002,3226.0,3225.4,0.94817948]
[1767673418546,0.97432188,3226.0,3225.4,0.001]
[1767673419574,0.97432188,3226.0,3225.4,0.93224067]
[1767673420881,4.07415192,3226.0,3225.4,0.93224067]
[1767673422679,0.97232188,3225.8,3225.4,0.001]
[1767673423963,0.40761519,3225.9,3225.4,0.93224067]
[1767673424162,3.10183004,3226.0,3225.4,0.93224067]
[1767673425354,0.002,3226.0,3225.4,0.93224067]
[1767673428361,0.002,3226.0,3225.4,0.92503483]
[1767673429062,0.97432188,3226.0,3225.4,0.92503483]
[1767673430409,4.07420666,3226.0,3225.4,0.92503483]
[1767673431495,4.79179964,3226.0,3225.4,0.92503483]
[1767673432863,3.10188478,3226.0,3225.4,0.92503483]
[1767673434197,0.002,3226.0,3225.4,0.92503483]
[1767673434873,0.002,3225.7,3225.4,0.92503483]
[1767673442899,0.002,3225.7,3225.2,0.99546812]
[1767673443098,0.002,3225.7,3225.1,0.001]
[1767673443397,3.1021023,3225.7,3225.1,0.001]
[1767673443602,0.40818708,3225.6,3225.1,0.001]
[1767673443966,1.38795553,3225.6,3225.1,0.001]
[1767673444588,0.97976845,3225.5,3224.6,0.812]
[1767673444897,0.97976845,3225.5,3224.6,1.80746812]
[1767673445072,0.97976845,3225.4,3224.6,0.812]
[1767673445499,0.97976845,3225.3,3224.6,0.812]
[1767673446600,0.97976845,3225.3,3224.9,0.001]
[1767673448978,5.29997537,3225.5,3224.9,0.001]
[1767673449176,5.29997537,3225.5,3224.9,0.99646812]
[1767673449384,0.52999754,3225.4,3224.9,0.99646812]
[1767673451407,3.63040634,3225.4,3224.9,0.99646812]
[1767673454098,0.97976845,3225.3,3224.9,0.001]
[1767673454795,3.63040634,3225.4,3224.9,0.001]
[1767673455109,0.77104828,3225.3,3224.9,0.001]
[1767673456715,3.1005829,3225.2,3224.9,0.001]
[1767673458394,3.87157361,3225.3,3224.9,0.001]
[1767673460382,3.8715391,3225.3,3224.9,0.001]
[1767673460701,3.8715391,3225.3,3224.7,0.99305788]
[1767673466618,6.97202992,3225.3,3224.7,0.99305788]
[1767673466783,0.97976845,3225.1,3224.4,0.99546812]
[1767673468105,4.08048063,3225.1,3224.4,0.99546812]
[1767673469988,4.08048063,3225.1,3224.7,0.001]
[1767673470189,0.002,3225.0,3224.7,0.001]
[1767673470812,5.58848227,3224.9,3224.2,0.99546812]
[1767673471134,5.58848227,3224.9,3224.0,0.96742765]
[1767673471135,1.07300999,3224.8,3224.0,0.96742765]
[1767673471289,5.58922383,3224.6,3223.6,0.001]
[1767673471494,3.10135218,3224.4,3223.7,0.96742765]
[1767673471803,4.0818008,3224.5,3223.7,0.96742765]
[1767673472524,0.98051001,3224.4,3223.7,0.96742765]
[1767673473116,3.10118782,3224.6,3223.7,0.96742765]
[1767673473311,0.31011878,3224.5,3223.7,0.96742765]
[1767673473513,1.29062879,3224.5,3223.7,0.96742765]
[1767673474522,0.98051001,3224.5,3223.7,0.96742765]
[1767673474722,1.07375155,3224.4,3223.6,0.001]
[1767673474895,1.07375155,3224.2,3223.6,0.001]